Cogmind - Beta 17 @@@ ROGUE MODE // 2026.08.03 @ 00:48:37 Player: 4R-ZE3 Result: Destroyed by G-47 Trooper with Particle Gun Performance ------------- Evolutions (0) 0 Regions Visited (2) 400 Robots Destroyed (13) 65 Value Destroyed (426) 426 Prototype IDs (0) 0 Alien Tech Used (0) 0 Bonus (0) 0 TOTAL SCORE: 891 Bonus ------- None Cogmind --------- Core Integrity 0/250 Matter 274/300 Energy 80/100 System Corruption 0% Temperature Cool (9) Movement Walking (260) Ox2 Location -10/Subcaves Parts ------- > --- POWER (1) -------- (None) > --- PROPULSION (2) --- Aluminum Leg Aluminum Leg > --- UTILITY (2) ------ High-capacity Storage Unit > --- WEAPON (2) ------- Hammer > --- INVENTORY (20) --- Aluminum Leg Wheel Compact Wheel Medium Storage Unit Small Laser Subdweller Laser Peak State ------------ > --- POWER ------------ (None) > --- PROPULSION ------- Aluminum Leg Wheel > --- UTILITY ---------- High-capacity Storage Unit Subdweller Optics > --- WEAPON ----------- Subdweller Laser Assault Rifle > --- INVENTORY -------- Aluminum Leg Aluminum Leg Aluminum Leg Aluminum Leg Wheel Compact Wheel Medium Storage Unit Small Laser Subdweller Laser Hammer [Rating: 9] Favorites ----------- Power Ion Engine Engine Ion Engine Propulsion Light Treads Treads Light Treads Leg Aluminum Leg Wheel Wheel Utility High-capacity Storage Unit Device Subdweller Optics Storage High-capacity Storage Unit Protection Propulsion Shielding Weapon Assault Rifle Energy Gun Subdweller Laser Ballistic Gun Assault Rifle Impact Weapon Hammer Build | -11 -10 -10 ------- Run | Yrd Mat Sub Slots Evolved . | . . . Power . | . . . Propulsion . | . . . Utility . | . . . Weapon . | . . . Parts Attached 19 | 6 7 6 Power 2 | 1 1 . Engine 2 | 1 1 . Core . | . . . Reactor . | . . . Propulsion 8 | 2 2 4 Treads 2 | . 2 . Leg 4 | . . 4 Wheel 2 | 2 . . Hover . | . . . Flight . | . . . Utility 5 | 1 3 1 Device 1 | . . 1 Storage 3 | 1 2 . Processor . | . . . Hackware . | . . . Protection 1 | . 1 . Artifact . | . . . Weapon 4 | 2 1 1 Energy Gun 1 | . . 1 Energy Cannon . | . . . Ballistic Gun 2 | 2 . . Ballistic Cannon . | . . . Launcher . | . . . Special Weapon . | . . . Impact Weapon 1 | . 1 . Slashing Weapon . | . . . Piercing Weapon . | . . . Special Melee Weapon . | . . . Unidentified Prototypes . | . . . Parts Lost 12 | . 1 11 Power 2 | . 1 1 Propulsion 5 | . . 5 Utility 2 | . . 2 Weapon 3 | . . 3 Highest Loss Streak 4 | . 1 4 To Critical Strikes . | . . . Average Backups 7 | 1 6 8 Power . | . . . Propulsion 5 | 1 4 5 Utility . | . . 1 Weapon 1 | . . 2 Tool/Special . | . . . Unused Backups 3 | . . 3 Power . | . . . Propulsion 2 | . . 2 Utility . | . . . Weapon 1 | . . 1 Tool/Special . | . . . Average Slot Usage (%) 89 | . 93 86 Engine 7 | . 13 3 Treads 16 | . 27 8 Leg 10 | . . 18 Device 5 | . . 9 Storage 14 | . 14 14 Protection 5 | . 8 3 Energy Gun 5 | . . 9 Ballistic Gun 17 | . 27 9 Impact Weapon 5 | . . 9 Peak Build Rating 9 | 6 8 9 Average Rating 7 | 4 6 7 On Entrance 4 | . 6 8 Avg Prop Armor Cover (%) 14 | . . 14 Naked Turns . | . . . Heaviest Build 50 | 13 50 50 Greatest Support 40 | 26 40 40 Greatest Overweight (x) 4 | 1 1 4 Average Overweight (x) 1 | . . 1 Largest Inventory Capacity 20 | 8 20 20 Average Capacity 16 | 7 12 20 Most Carried 12 | 3 11 12 Average Carried 7 | 1 6 8 Final Capacity 20 | 8 20 20 Final Carried 11 | 3 11 6 Class Distribution -------------------- 100% | Mutant Dominant Class ---------------- Mutant | -10/Materials Mutant | -10/Subcaves Resources | -11 -10 -10 ----------- Run | Yrd Mat Sub Matter Collected 536 | 155 204 177 Remotely . | . . . Salvage Created 513 | . 297 216 Parts 30 | . 16 14 Haulers Intercepted . | . . . Recyclers Shooed . | . . . Parts Field Recycled . | . . . Retrieved Matter . | . . . Parts Self-Destructed . | . . . Prevented . | . . . Parts Restored . | . . . Kills | -11 -10 -10 ------- Run | Yrd Mat Sub Combat Hostiles Destroyed 12 | . 7 5 Melee 1 | . . 1 Guns 10 | . 7 3 Classes Destroyed 4 | . 3 1 Builder 1 | . 1 . Swarmer 1 | . 1 . Grunt 7 | . 6 1 Subdweller 4 | . . 4 Best Kill Streak 3 | . 3 2 Combat Bots Only 3 | . 3 2 Max Kills in Single Turn 2 | . 2 1 Gunslinging 1 | . 1 . Exploded . | . . . Melee 1 | . . 1 Uniques/NPCs Destroyed . | . . . Combat | -11 -10 -10 -------- Run | Yrd Mat Sub Hostile Shots Fired 134 | . 58 76 Missed 33 | . 14 19 Hits 101 | . 44 57 Projectile 101 | . 44 57 Damage Taken 1422 | . 485 937 Core 250 | . 42 208 Absorbed by Shields . | . . . Redirected to Shielding 52 | . 29 23 Core Remaining (%) 100 | 100 . . Volleys Fired 55 | . 33 22 Largest 2 | . 2 2 Hottest 80 | . 40 80 Shots Fired 106 | . 66 40 Gun 106 | . 66 40 Cannon . | . . . Launcher . | . . . Special . | . . . Kinetic 100 | . 66 34 Thermal 6 | . . 6 Explosive . | . . . Electromagnetic . | . . . Robot Hit Streak 19 | . 7 19 Robot Miss Streak 4 | . 4 3 Penetration Max . | . . . Secondary Targets 1 | . 1 . Max Gunslinging Chain 1 | . 1 . Shots Hit Robots 82 | . 44 38 Core Hits 26 | . 15 11 Critical Kills 3 | . 2 1 Critical Parts Destroyed 2 | . 1 1 Critical Strikes 5 | . 3 2 Destroy 3 | . 3 . Smash 2 | . . 2 Melee Attacks 17 | . 3 14 Impact 17 | . 3 14 Slashing . | . . . Piercing . | . . . Sneak Attacks . | . . . Combat Hostiles . | . . . Follow-up Attacks . | . . . Damage Inflicted 1019 | . 452 567 Guns 788 | . 452 336 Cannons . | . . . Explosions . | . . . Melee 231 | . . 231 Ramming . | . . . Kinetic 725 | . 452 273 Thermal 63 | . . 63 Explosive . | . . . Electromagnetic . | . . . Impact 231 | . . 231 Slashing . | . . . Piercing . | . . . Highest Corruption . | . . . Average Corruption . | . . . Corruption Purged . | . . . Corruption Blocked . | . . . Overload Shots . | . . . Overflow Damage 35 | . . 35 Projectiles . | . . . Explosions . | . . . Melee 35 | . . 35 Knockbacks . | . . . Impact . | . . . Kinetic . | . . . Secondary . | . . . Self-Inflicted Damage . | . . . Shots . | . . . Rammed . | . . . Targets Rammed . | . . . Kicked . | . . . Crushed . | . . . Highest Temperature 36 | . 36 . Average Temperature 13 | . 13 . Received Heat Transfer 561 | . 243 318 Siege Activations . | . . . Martial Activations . | . . . Shielding Activations . | . . . Robots Disrupted . | . . . Combat Hostiles . | . . . Robots Corrupted 1 | . . 1 Combat Hostiles 1 | . . 1 Parts Fried 2 | . . 2 Impact Corruptions 1 | . . 1 Robots Melted . | . . . Combat Hostiles . | . . . Parts Melted . | . . . Heat Transferred 75 | . . 75 Parts Sabotaged . | . . . Parts Stolen . | . . . Parts Stripped . | . . . Power Chain Reactions . | . . . Alert | -11 -10 -10 ------- Run | Yrd Mat Sub Maximum Alert Level . | . . . Low Security (%) 100 | 100 100 . Level 1 . | . . . Level 2 . | . . . Level 3 . | . . . Level 4 . | . . . Level 5 . | . . . High Security . | . . . Max Security . | . . . Peak Influence 70 | . 70 . Initial . | . . . Average 14 | . 15 . Influence Increases 221 | . 201 20 Destroy 0b10 Robot/C 160 | . 140 20 Destroy 0b10 Robot/NC 5 | . 5 . Destroy Leader 20 | . 20 . Successful Hack 5 | . 5 . Destroy Structure 1 | . 1 . Lose Combat Pursuer 30 | . 30 . Influence Decreases 221 | . 154 67 Entered New Map 23 | . . 23 Time Decay 184 | . 144 40 Lost Part 14 | . 10 4 Squads Dispatched 2 | . 2 . Investigation 1 | . 1 . Extermination . | . . . Reinforcement 1 | . 1 . Assault . | . . . Garrison . | . . . Intercept . | . . . Searches Triggered . | . . . Construction Impeded . | . . . Haulers Reinforced . | . . . Active Scanning Responses . | . . . Cargo Convoy Interrupts . | . . . Stealth | -11 -10 -10 --------- Run | Yrd Mat Sub Distress Signals . | . . . Communications Jammed . | . . . Distress Signals . | . . . Times Spotted 20 | . 14 6 Peak Tracking Total 3 | . 3 2 Tactical Retreats 1 | . 1 . Traps | -11 -10 -10 ------- Run | Yrd Mat Sub Traps Triggered 1 | . 1 . Indirectly . | . . . Trap Hack Attempts . | . . . Triggered . | . . . Disarmed . | . . . Reprogrammed . | . . . Reused . | . . . Traps Extracted . | . . . Installed . | . . . Triggered . | . . . Machines | -11 -10 -10 ---------- Run | Yrd Mat Sub Machines Disabled . | . . . Max in Single Turn . | . . . Machines Repaired . | . . . Machines Dismantled . | . . . Machines Sabotaged . | . . . Overloaded Fab Kills . | . . . Hacking | -11 -10 -10 --------- Run | Yrd Mat Sub Machines Accessed 3 | . 3 . Terminals 3 | . 3 . Fabricators . | . . . Repair Stations . | . . . Recycling Units . | . . . Scanalyzers . | . . . Garrison Access . | . . . Total Hacks 9 | . 9 . Successful 3 | . 3 . Failed 6 | . 6 . Catastrophic 2 | . 2 . Database Lockouts . | . . . Manual 9 | . 9 . Terminals 9 | . 9 . Fabricators . | . . . Repair Stations . | . . . Recycling Units . | . . . Scanalyzers . | . . . Garrison Access . | . . . Terminal Hacks 2 | . 2 . Robot Analysis 2 | . 2 . Fabricator Hacks . | . . . Repair Station Hacks . | . . . Recycling Unit Hacks . | . . . Scanalyzer . | . . . Garrison Access Hacks . | . . . Unauthorized Hacks 1 | . 1 . Terminals 1 | . 1 . Botnet 1 | . 1 . Fabricators . | . . . Repair Stations . | . . . Recycling Units . | . . . Scanalyzers . | . . . Garrison Access . | . . . Data Cores Recovered . | . . . Used . | . . . Hacking Detections 3 | . 3 . Full Trace Events . | . . . Feedback Events . | . . . Feedback Blocked . | . . . Robot Schematics Acquired . | . . . Robots Built . | . . . Authchips . | . . . Time . | . . . Total Robot Build Rating . | . . . Part Schematics Acquired . | . . . Parts Built . | . . . Authchips . | . . . Time . | . . . Total Part Build Rating . | . . . Part Studies Acquired . | . . . Parts Repaired . | . . . Time . | . . . Parts Recycled . | . . . Recycled Matter . | . . . Retrieved Matter . | . . . Retrieved Components . | . . . Parts Scanalyzed . | . . . Part Schematics Acquired . | . . . Parts Damaged . | . . . Bothacking | -11 -10 -10 ------------ Run | Yrd Mat Sub Used RIF Installer . | . . . Robots Hacked . | . . . Non-combat . | . . . Combat . | . . . Robot Hacks Applied . | . . . Relay Couplers Released . | . . . Fabnet Peak Effective % . | . . . Robots Rewired . | . . . Allies Hacked . | . . . Hacks Repelled . | . . . Allies | -11 -10 -10 -------- Run | Yrd Mat Sub Total Allies . | . . . Largest Group . | . . . Highest-Rated Group . | . . . Highest-Rated Ally . | . . . Total Orders . | . . . Ally Attacks . | . . . Total Damage . | . . . Kills . | . . . Allies Corrupted . | . . . Allies Melted . | . . . Intel | -11 -10 -10 ------- Run | Yrd Mat Sub Active Infowar (turns) 547 | . . 547 Optics 547 | . . 547 Robot Analysis Total 2 | . 2 . Derelict Logs Recovered 1 | . . 1 Drone Launches . | . . . Drone Recoveries . | . . . Exploration | -11 -10 -10 ------------- Run | Yrd Mat Sub Turns Passed 1454 | 48 617 789 Spaces Moved 573 | 41 260 272 Core 3 | 3 . . Treads 304 | . 240 64 Legs 183 | . . 183 Wheels 83 | 38 20 25 Hover . | . . . Flight . | . . . Fastest Speed 50 | 50 90 140 Average Speed 202 | 88 176 244 Slowest Speed 260 | 100 240 260 Overloaded Moves . | . . . Propulsion Burnouts . | . . . Robots Hopped . | . . . Potential Cave-ins . | . . . Cave-ins Triggered . | . . . Exploration Rate (%) 28 | 4 52 30 Regions Visited 2 Branch Regions 1 Pre-discovered Areas 1 | . . 1 Known Exits Taken . | . . . Unknown Exits Taken 2 | 1 1 . Scrap Searched . | . . . Spaces Dug 1 | . 1 . Terrain Destroyed 1 | . 1 . Melee 1 | . 1 . Projectile . | . . . AOE . | . . . Terrain Rammed . | . . . Walls Destroyed . | . . . Machines Disabled . | . . . Actions | -11 -10 -10 --------- Run | Yrd Mat Sub Total 737 | 49 353 335 Wait 58 | . 42 16 Move 571 | 40 259 272 Hop . | . . . Pick Up 13 | 3 8 2 Fast Attach 8 | 6 1 1 Attach 8 | . 1 7 Detach . | . . . Swap 6 | . 5 1 Drop 1 | . 1 . Fire 55 | . 33 22 Melee 17 | . 3 14 Ram . | . . . Kick . | . . . Crush . | . . . Escape Stasis . | . . . Rewire . | . . . Trap . | . . . Miscellaneous . | . . . Route ------- -11/Scrapyard -10/Materials (discovered 3 exits: [*Mat] / [*Min] / [*Sub]) -10/Subcaves (discovered 1 exit: [*Mat]) History --------- Turn | Location | Event 15 | -11/Scrapyard | Discovered new exit (range 16) 49 | -11/Scrapyard | Entered Materials 153 | -10/Materials | Discovered new exit (range 5) 302 | -10/Materials | Build established: Mutant 315 | -10/Materials | Discovered new exit (range 15) 505 | -10/Materials | Discovered new exit (range 16) 666 | -10/Materials | Entered Subcaves 667 | -10/Subcaves | Approached by a straggling Scientist 888 | -10/Subcaves | Lost 3 parts (1p1n1u) 959 | -10/Subcaves | Lost 4 parts (2n2w) 1034 | -10/Subcaves | Learned location of Zion (-6) 1121 | -10/Subcaves | A swath of the cavern ceiling suddenly collapsed 1415 | -10/Subcaves | Discovered new exit (range 14) 1416 | -10/Subcaves | Core integrity fell below 50% 1435 | -10/Subcaves | Core integrity fell below 20% 1455 | -10/Subcaves | Destroyed by G-47 Trooper with Particle Gun Last Messages --------------- 0P-9E3(c): "I think it's somewhere east of here" 01121_ 0P-9E3(c) crushed by falling debris. 01121_ 0P-9E3(c) destroyed. A swath of the cavern ceiling suddenly collapses. 01287_ 1S-H8T(u) tweaks Twisted Machinery. 01407_ Aluminum Leg destroyed. 01415_ EXIT=FOUND 01420_ Sub. Optics destroyed. 01420_ G-34 Mercenary suffers critical hit (Smash). 01420_ Destroyed Aluminum Leg. 01420_ G-34 Mercenary system corrupted by crushing effect. 01421_ G-34 Mercenary system terminally corrupted. 01421_ Heat Sink fried. 01421_ Ion Engine fried. 01448_ Sub. Laser destroyed. 01452_ Aluminum Leg destroyed. Map ----- +----------------------------------------------------+ | # ##?## ###### #### #?????? | | # ### #### #??????????? | | # ### ##??????????? | | ### "#####???????????? | | #??## ##???????????????? | | # ### #??## #####????????????????? | | ## #?# ## #### "#????????????????????? | | ?## #?# ### ## """##???????????????????? | | ??## ##?## #### """"#???????????????????? | | ???#####??## #?# ""#???????????????????? | | ????????### #?## "##???????????????????? | | ?????### ### #??### "#????????????????????? | | #???## #"#"##????# ##????????????????????? | | #??##"# #?#"###?????# ###?????????????????????? | | #?##"""####"########## #???????????????????????? | | ### #"#"##""### # ## " #??????????????????????? | | # #"" " ##"##; ### "#??????????????????????? | | ##""#"##" "#; #####??????????????????????? | | # # ###"#####"## ####???###??????????????????? | | ##### ## ## ##### %## ##?# ####??? ??????????? | | #??# ###### ##??# ## ## ??????????? | | #??###??????#??## ?????????? | | #####??????????# < ??????????? | | ## ##?????????# #??????????????? | | ##????????# #??????????????? | | #???????# ###@ #??????????????? | | #???????#### #?# #?????????????? | | ##????????? #?###g #????????????? | | ###????????? #????### #??????????? | | ###????????? ???????? ### #??????????? | | ##?????????? #### ?????????#????##??????????? | | #?????????? ???? ??????????????????????????? | | #?????????" ????? ?????????????????????????? | | #???????????????# ##?????????????????????????? | | #???????????????###""#??????????????????????????? | | #?????????????????" "#??????????????????????????? | | #??????????????????""???????????????????????????? | | ##???????????????????????????????????????????????? | | #????????????????????????????????????????????????? | | #????????????????????????????????????????????????? | | ?????????????????????????????????????????????????? | | ?????????????????????????????????????????????????? | | ????????????????????????????????????????????????? | | #???????????????????????????????????????????????? | | #???????????????????????????????????????????????? | | ???????????????????????????????????????????????? | | #??????????????????????????????????????????????? | | #??????????????????????????????????????????????? | | #??????????????????????????????????????????????? | | ##??????????????????????????????????????????????? | +----------------------------------------------------+ Best States ------------- Heat Dissipation 25 Energy Generation 10 Energy Capacity 250 Matter Stores 279 Matter Capacity 300 Sight Range 21 Terrain Scan Density 10 Propulsion Shielding 33 Evasion (%) 42 Recoil Reduction 2 Item Schematics ----------------- None Robot Schematics ------------------ None Fabricated ------------ Nothing Repaired ---------- Nothing Studied --------- None Alien Tech Used ----------------- None Achievements -------------- None Challenges ------------ None Game ------ Seed CoolantHugeStabilizer Manual? 0 Play Time 00:10:49 Cumulative 153.6 hours Start 2026.08.03 @ 00:41:21 End 2026.08.03 @ 00:48:37 Sessions 1 Manual Loads 0 Difficulty Rogue Special Mode None Game No. 165 Rogue 111 Adventurer 54 Explorer 0 Win Type - Total 7 Types 3/0/1/1/0/0/0/1/0/1 Lore% 63 Gallery% 56 Achievement% 53 Wizard Run 0 Options --------- Layout 1 ASCII 0 Keyboard 0 Movement Mouse Keybinds 1 Fullscreen 2 Font 32/Tamsyn Map View 50x35 Zoom Use 0% Tactical HUD 1 Map Filters NONE Filters NONE Steam 1 RUN: 75bc7170-b1e4-424d-9b97-85ed978b668a